Workbook

Sheet guide
B2: Package: AC.stats.samplecalc

Sheet data
B2: TAB: DATA (IN %) | K2: ORTHOGONALIZED DATA
B4: Treasury yield data | G4: Normalized Data | K4: PC (O) = V x X* | P4: F = V x X
B5: mean | C5: =AVERAGE(C9:C106) -> 2.783470408 | D5: =AVERAGE(D9:D106) -> 4.075182653 | E5: 4.867167347 | G5: =AVERAGE(G9:G106) -> 3.783821329e-16 | H5: -9.289621226e-16 | I5: -9.878719158e-16 | L5: =VAR(L9:L106) -> 2.799644872 | M5: =VAR(M9:M106) -> 0.1972203487 | N5: =VAR(N9:N106) -> 0.003134779784 | U5: n | V5: =calc!L11 -> 98
B6: stdev | C6: =STDEV(C9:C106) -> 2.20638639 | D6: =STDEV(D9:D106) -> 1.959921583 | E6: 1.684421427 | G6: =STDEV(G9:G106) -> 1 | H6: 1 | I6: 1 | L6: =AVERAGE(L9:L106) -> -1.255231746e-15 | M6: =AVERAGE(M9:M106) -> -9.958020803e-16 | N6: =AVERAGE(N9:N106) -> -1.098894218e-16 | U6: Correlation of X1 with data
B7: Date | C7: 3M | D7: 5Y | E7: 10Y | G7: 3M* | H7: 5Y* | I7: 10Y* | K7: Data | L7: PC1 | M7: PC2 | N7: PC3 | P7: F1=Index | Q7: F2 | R7: F3 | U7: =data!G7 -> 3M* | V7: =data!H7 -> 5Y* | W7: =data!I7 -> 10Y*
B9: 2015-09-30 | C9: 0.1483 | D9: 1.3698 | E9: 2.3169 | G9: =(C9 - C$5)/C$6 -> -1.194337683 | H9: =(D9 - D$5)/D$6 -> -1.380352498 | I9: -1.514031647 | K9: =data!B9 -> 2015-09-30 | L9: =_xll.AC.data._get(calc!D13, "X", 1) -> -2.363078279 | M9: -0.1854191177 | N9: 0.07475390329 | P9: =SUMPRODUCT(calc!$D$29:$F$29, data!C9:E9)/calc!$G$29 -> 1.290477391 | Q9: =SUMPRODUCT(calc!$D$30:$F$30, data!C9:E9) -> 1.48190838 | R9: =SUMPRODUCT(calc!$D$31:$F$31, data!C9:E9) -> -0.2784113384 | T9: correlation | U9: =SUMPRODUCT($L$9:$L$106, data!G$9:G$106) / ($V$5*SQRT($L$5)*data!C$6) -> 0.4200100989 | V9: =SUMPRODUCT($L$9:$L$106, data!H$9:H$106) / ($V$5*SQRT($L$5)*data!D$6) -> 0.5030169985 | W9: =SUMPRODUCT($L$9:$L$106, data!I$9:I$106) / ($V$5*SQRT($L$5)*data!E$6) -> 0.5669749019
B10: 2015-06-30 | C10: 0.1262 | D10: 1.5898 | E10: 2.6962 | G10: =(C10 - C$5)/C$6 -> -1.204354061 | H10: =(D10 - D$5)/D$6 -> -1.268103109 | I10: =(E10 - E$5)/E$6 -> -1.28885047 | K10: =data!B10 -> 2015-06-30 | L10: -2.172010474 | M10: -0.02571722597 | N10: 0.03740132209 | P10: =SUMPRODUCT(calc!$D$29:$F$29, data!C10:E10)/calc!$G$29 -> 1.485292684 | Q10: =SUMPRODUCT(calc!$D$30:$F$30, data!C10:E10) -> 1.760431416 | R10: =SUMPRODUCT(calc!$D$31:$F$31, data!C10:E10) -> -0.3157681983 | T10: beta | U10: =SUMPRODUCT($L$9:$L$106, data!G$9:G$106)/$V$5 -> 1.550574993 | V10: =SUMPRODUCT($L$9:$L$106, data!H$9:H$106)/$V$5 -> 1.6495779 | W10: =SUMPRODUCT($L$9:$L$106, data!I$9:I$106)/$V$5 -> 1.597960591
B11: 2015-03-31 | C11: 0.1204 | D11: 1.3105 | E11: 2.2897 | G11: -1.206982793 | H11: -1.410608811 | I11: -1.530179625 | K11: =data!B11 -> 2015-03-31 | L11: -2.397476878 | M11: -0.190175396 | N11: 0.06334273959 | P11: =SUMPRODUCT(calc!$D$29:$F$29, data!C11:E11)/calc!$G$29 -> 1.252015287 | Q11: =SUMPRODUCT(calc!$D$30:$F$30, data!C11:E11) -> 1.477662491 | R11: =SUMPRODUCT(calc!$D$31:$F$31, data!C11:E11) -> -0.302526608
B12: 2014-12-31 | C12: 0.1113 | D12: 1.5497 | E12: 2.5749 | G12: -1.211107184 | H12: -1.288563112 | I12: -1.360863327 | K12: =data!B12 -> 2014-12-31 | L12: -2.22949545 | M12: -0.06623162219 | N12: 0.06393675435 | P12: =SUMPRODUCT(calc!$D$29:$F$29, data!C12:E12)/calc!$G$29 -> 1.426293608 | Q12: =SUMPRODUCT(calc!$D$30:$F$30, data!C12:E12) -> 1.693992797 | R12: =SUMPRODUCT(calc!$D$31:$F$31, data!C12:E12) -> -0.2746146332
B13: 2014-09-30 | C13: 0.029 | D13: 1.6954 | E13: 2.897 | G13: -1.248407994 | H13: -1.214223403 | I13: -1.169640397 | K13: =data!B13 -> 2014-09-30 | L13: -2.095844118 | M13: 0.08849384635 | N13: 0.02293306882 | P13: =SUMPRODUCT(calc!$D$29:$F$29, data!C13:E13)/calc!$G$29 -> 1.557060479 | Q13: =SUMPRODUCT(calc!$D$30:$F$30, data!C13:E13) -> 1.973571968 | R13: =SUMPRODUCT(calc!$D$31:$F$31, data!C13:E13) -> -0.3227655877 | T13: Index is a normalized weighted-average of data,
B14: 2014-06-30 | C14: 0.0526 | D14: 1.5711 | E14: 2.8462 | G14: -1.237711772 | H14: -1.277644307 | I14: -1.199799121 | K14: =data!B14 -> 2014-06-30 | L14: -2.145003659 | M14: 0.05128440831 | N14: -0.01235100832 | P14: =SUMPRODUCT(calc!$D$29:$F$29, data!C14:E14)/calc!$G$29 -> 1.505034748 | Q14: =SUMPRODUCT(calc!$D$30:$F$30, data!C14:E14) -> 1.903439873 | R14: =SUMPRODUCT(calc!$D$31:$F$31, data!C14:E14) -> -0.3972956808 | T14: where weighted average is based on first eigen-vector
B15: 2014-03-31 | C15: 0.0476 | D15: 1.6953 | E15: 3.0717 | G15: -1.239977921 | H15: -1.214274425 | I15: -1.06592526 | K15: =data!B15 -> 2014-03-31 | L15: -2.03134934 | M15: 0.142728166 | N15: -0.03811577037 | P15: =SUMPRODUCT(calc!$D$29:$F$29, data!C15:E15)/calc!$G$29 -> 1.621218914 | Q15: =SUMPRODUCT(calc!$D$30:$F$30, data!C15:E15) -> 2.061444823 | R15: =SUMPRODUCT(calc!$D$31:$F$31, data!C15:E15) -> -0.4267049594
B16: 2013-12-31 | C16: 0.0655 | D16: 1.7928 | E16: 3.2872 | G16: -1.231865108 | H16: -1.164527537 | I16: -0.9379881553 | K16: =data!B16 -> 2013-12-31 | L16: -1.923420424 | M16: 0.2201092404 | N16: -0.07378076407 | P16: =SUMPRODUCT(calc!$D$29:$F$29, data!C16:E16)/calc!$G$29 -> 1.732293745 | Q16: =SUMPRODUCT(calc!$D$30:$F$30, data!C16:E16) -> 2.190826497 | R16: =SUMPRODUCT(calc!$D$31:$F$31, data!C16:E16) -> -0.4770842684
B17: 2013-09-30 | C17: 0.0285 | D17: 1.4678 | E17: 2.7785 | G17: -1.248634609 | H17: -1.330350498 | I17: -1.239990963 | K17: =data!B17 -> 2013-09-30 | L17: -2.205667662 | M17: 0.02713765137 | N17: -0.02814493179 | P17: =SUMPRODUCT(calc!$D$29:$F$29, data!C17:E17)/calc!$G$29 -> 1.439185495 | Q17: =SUMPRODUCT(calc!$D$30:$F$30, data!C17:E17) -> 1.864744636 | R17: =SUMPRODUCT(calc!$D$31:$F$31, data!C17:E17) -> -0.4338689448
B18: 2013-06-30 | C18: 0.072 | D18: 1.4295 | E18: 2.6775 | G18: -1.228919114 | H18: -1.349892096 | I18: -1.299952204 | K18: =data!B18 -> 2013-06-30 | L18: -2.240845585 | M18: -0.02706165724 | N18: -0.01432921731 | P18: =SUMPRODUCT(calc!$D$29:$F$29, data!C18:E18)/calc!$G$29 -> 1.4064387 | Q18: =SUMPRODUCT(calc!$D$30:$F$30, data!C18:E18) -> 1.764378285 | R18: =SUMPRODUCT(calc!$D$31:$F$31, data!C18:E18) -> -0.4173846448
B19: 2013-03-31 | C19: 0.0651 | D19: 0.8429 | E19: 1.8219 | G19: -1.2320464 | H19: -1.649189785 | I19: -1.807901098 | K19: =data!B19 -> 2013-03-31 | L19: -2.713674823 | M19: -0.3750014669 | N19: 0.04018101491 | P19: =SUMPRODUCT(calc!$D$29:$F$29, data!C19:E19)/calc!$G$29 -> 0.9175889773 | Q19: =SUMPRODUCT(calc!$D$30:$F$30, data!C19:E19) -> 1.165232632 | R19: =SUMPRODUCT(calc!$D$31:$F$31, data!C19:E19) -> -0.3898402357
B20: 2012-12-31 | C20: 0.0887 | D20: 0.802 | E20: 1.7439 | G20: -1.221350177 | H20: -1.670057967 | I20: -1.854207799 | K20: =data!B20 -> 2012-12-31 | L20: -2.746815251 | M20: -0.4142838491 | N20: 0.04744787562 | P20: =SUMPRODUCT(calc!$D$29:$F$29, data!C20:E20)/calc!$G$29 -> 0.8851772612 | Q20: =SUMPRODUCT(calc!$D$30:$F$30, data!C20:E20) -> 1.093650273 | R20: =SUMPRODUCT(calc!$D$31:$F$31, data!C20:E20) -> -0.3835006495
B21: 2012-09-30 | C21: 0.1162 | D21: 0.7001 | E21: 1.6006 | G21: -1.208886358 | H21: -1.722049843 | I21: -1.939281521 | K21: =data!B21 -> 2012-09-30 | L21: -2.819849314 | M21: -0.483149141 | N21: 0.0518792648 | P21: =SUMPRODUCT(calc!$D$29:$F$29, data!C21:E21)/calc!$G$29 -> 0.8113067849 | Q21: =SUMPRODUCT(calc!$D$30:$F$30, data!C21:E21) -> 0.9700153928 | R21: =SUMPRODUCT(calc!$D$31:$F$31, data!C21:E21) -> -0.3888931445
B22: 2012-06-30 | C22: 0.1113 | D22: 0.7988 | E22: 1.6753 | G22: -1.211107184 | H22: -1.671690685 | I22: -1.89493395 | K22: =data!B22 -> 2012-06-30 | L22: -2.765540659 | M22: -0.4465812053 | N22: 0.06674667939 | P22: =SUMPRODUCT(calc!$D$29:$F$29, data!C22:E22)/calc!$G$29 -> 0.8685341052 | Q22: =SUMPRODUCT(calc!$D$30:$F$30, data!C22:E22) -> 1.034943449 | R22: =SUMPRODUCT(calc!$D$31:$F$31, data!C22:E22) -> -0.3526783255
B23: 2012-03-31 | C23: 0.1106 | D23: 1.1561 | E23: 2.2529 | G23: -1.211424445 | H23: -1.489387473 | I23: -1.552026889 | K23: =data!B23 -> 2012-03-31 | L23: -2.459456288 | M23: -0.2132125106 | N23: 0.01506279633 | P23: =SUMPRODUCT(calc!$D$29:$F$29, data!C23:E23)/calc!$G$29 -> 1.183510152 | Q23: =SUMPRODUCT(calc!$D$30:$F$30, data!C23:E23) -> 1.436911486 | R23: =SUMPRODUCT(calc!$D$31:$F$31, data!C23:E23) -> -0.4002973899
B24: 2011-12-31 | C24: 0.016 | D24: 0.9248 | E24: 1.9491 | G24: -1.254299982 | H24: -1.607402399 | I24: -1.732385554 | K24: =data!B24 -> 2011-12-31 | L24: -2.657705046 | M24: -0.3057878577 | N24: 0.03561315912 | P24: =SUMPRODUCT(calc!$D$29:$F$29, data!C24:E24)/calc!$G$29 -> 0.9722412455 | Q24: =SUMPRODUCT(calc!$D$30:$F$30, data!C24:E24) -> 1.293003808 | R24: =SUMPRODUCT(calc!$D$31:$F$31, data!C24:E24) -> -0.3856096692
B25: 2011-09-30 | C25: 0.0249 | D25: 0.9982 | E25: 2.0318 | G25: -1.250266237 | H25: -1.569951921 | I25: -1.683288577 | K25: =data!B25 -> 2011-09-30 | L25: -2.604842157 | M25: -0.2736226326 | N25: 0.03609876509 | P25: =SUMPRODUCT(calc!$D$29:$F$29, data!C25:E25)/calc!$G$29 -> 1.027894468 | Q25: =SUMPRODUCT(calc!$D$30:$F$30, data!C25:E25) -> 1.347315996 | R25: =SUMPRODUCT(calc!$D$31:$F$31, data!C25:E25) -> -0.3772229787
B26: 2011-06-30 | C26: 0.0388 | D26: 1.8576 | E26: 3.3178 | G26: -1.243966343 | H26: -1.13146499 | I26: -0.9198216802 | K26: =data!B26 -> 2011-06-30 | L26: -1.900034324 | M26: 0.2461003331 | N26: -0.0551489056 | P26: =SUMPRODUCT(calc!$D$29:$F$29, data!C26:E26)/calc!$G$29 -> 1.756134342 | Q26: =SUMPRODUCT(calc!$D$30:$F$30, data!C26:E26) -> 2.241185434 | R26: =SUMPRODUCT(calc!$D$31:$F$31, data!C26:E26) -> -0.436981473
B27: 2011-03-31 | C27: 0.075 | D27: 2.2626 | E27: 3.7356 | G27: -1.227559425 | H27: -0.9248240691 | I27: -0.67178399 | K27: =data!B27 -> 2011-03-31 | L27: -1.624811049 | M27: 0.4147753633 | N27: -0.03802477953 | P27: =SUMPRODUCT(calc!$D$29:$F$29, data!C27:E27)/calc!$G$29 -> 2.046214559 | Q27: =SUMPRODUCT(calc!$D$30:$F$30, data!C27:E27) -> 2.528449471 | R27: =SUMPRODUCT(calc!$D$31:$F$31, data!C27:E27) -> -0.3656143498
B28: 2010-12-31 | C28: 0.1391 | D28: 2.0516 | E28: 3.5559 | G28: -1.198507397 | H28: -1.032481438 | I28: -0.7784675059 | K28: =data!B28 -> 2010-12-31 | L28: -1.734161281 | M28: 0.3104141641 | N28: -0.06911768349 | P28: =SUMPRODUCT(calc!$D$29:$F$29, data!C28:E28)/calc!$G$29 -> 1.93454096 | Q28: =SUMPRODUCT(calc!$D$30:$F$30, data!C28:E28) -> 2.335509904 | R28: =SUMPRODUCT(calc!$D$31:$F$31, data!C28:E28) -> -0.4450318411
B29: 2010-09-30 | C29: 0.1382 | D29: 1.4105 | E29: 2.6593 | G29: -1.198915303 | H29: -1.359586361 | I29: -1.310757101 | K29: =data!B29 -> 2010-09-30 | L29: -2.236058308 | M29: -0.05881151503 | N29: -0.02327246945 | P29: =SUMPRODUCT(calc!$D$29:$F$29, data!C29:E29)/calc!$G$29 -> 1.415238659 | Q29: =SUMPRODUCT(calc!$D$30:$F$30, data!C29:E29) -> 1.698053855 | R29: =SUMPRODUCT(calc!$D$31:$F$31, data!C29:E29) -> -0.4384459984
B30: 2010-06-30 | C30: 0.2032 | D30: 1.8797 | E30: 3.2566 | G30: -1.169455368 | H30: -1.120189028 | I30: -0.9561546305 | K30: =data!B30 -> 2010-06-30 | L30: -1.872580447 | M30: 0.1678300349 | N30: -0.04423281691 | P30: =SUMPRODUCT(calc!$D$29:$F$29, data!C30:E30)/calc!$G$29 -> 1.796478326 | Q30: =SUMPRODUCT(calc!$D$30:$F$30, data!C30:E30) -> 2.079143896 | R30: =SUMPRODUCT(calc!$D$31:$F$31, data!C30:E30) -> -0.4258478771
B31: 2010-03-31 | C31: 0.1508 | D31: 2.6278 | E31: 4.1577 | G31: -1.193204608 | H31: -0.7384900834 | I31: -0.4211934945 | K31: =data!B31 -> 2010-03-31 | L31: -1.350161206 | M31: 0.5672264174 | N31: -0.04275172376 | P31: =SUMPRODUCT(calc!$D$29:$F$29, data!C31:E31)/calc!$G$29 -> 2.33684099 | Q31: =SUMPRODUCT(calc!$D$30:$F$30, data!C31:E31) -> 2.780006193 | R31: =SUMPRODUCT(calc!$D$31:$F$31, data!C31:E31) -> -0.3377763338
B32: 2009-12-31 | C32: 0.0505 | D32: 2.7233 | E32: 4.1845 | G32: -1.238663554 | H32: -0.6897636442 | I32: -0.4052829868 | K32: =data!B32 -> 2009-12-31 | L32: -1.337417094 | M32: 0.6209879911 | N32: -0.002239914017 | P32: =SUMPRODUCT(calc!$D$29:$F$29, data!C32:E32)/calc!$G$29 -> 2.34618578 | Q32: =SUMPRODUCT(calc!$D$30:$F$30, data!C32:E32) -> 2.89165678 | R32: =SUMPRODUCT(calc!$D$31:$F$31, data!C32:E32) -> -0.2530950586
B33: 2009-09-30 | C33: 0.1265 | D33: 2.3648 | E33: 3.7703 | G33: -1.204218092 | H33: -0.8726791257 | I33: -0.6511834446 | K33: =data!B33 -> 2009-09-30 | L33: -1.56882975 | M33: 0.4175031701 | N33: -0.0146378457 | P33: =SUMPRODUCT(calc!$D$29:$F$29, data!C33:E33)/calc!$G$29 -> 2.109550015 | Q33: =SUMPRODUCT(calc!$D$30:$F$30, data!C33:E33) -> 2.525915523 | R33: =SUMPRODUCT(calc!$D$31:$F$31, data!C33:E33) -> -0.3179876328
B34: 2009-06-30 | C34: 0.2298 | D34: 2.609 | E34: 4.0635 | G34: -1.157399456 | H34: -0.7480823039 | I34: -0.4771177415 | K34: =data!B34 -> 2009-06-30 | L34: -1.368085386 | M34: 0.5044122893 | N34: -0.0274334313 | P34: =SUMPRODUCT(calc!$D$29:$F$29, data!C34:E34)/calc!$G$29 -> 2.32453521 | Q34: =SUMPRODUCT(calc!$D$30:$F$30, data!C34:E34) -> 2.658967773 | R34: =SUMPRODUCT(calc!$D$31:$F$31, data!C34:E34) -> -0.3187034621
B35: 2009-03-31 | C35: 0.2252 | D35: 1.8369 | E35: 3.0564 | G35: -1.159484313 | H35: -1.142026637 | I35: -1.075008497 | K35: =data!B35 -> 2009-03-31 | L35: -1.948538553 | M35: 0.08634868988 | N35: 0.003659786148 | P35: =SUMPRODUCT(calc!$D$29:$F$29, data!C35:E35)/calc!$G$29 -> 1.722198925 | Q35: =SUMPRODUCT(calc!$D$30:$F$30, data!C35:E35) -> 1.936733386 | R35: =SUMPRODUCT(calc!$D$31:$F$31, data!C35:E35) -> -0.3511926088
B36: 2008-12-31 | C36: 0.1208 | D36: 1.6291 | E36: 2.8717 | G36: -1.206801501 | H36: -1.248051287 | I36: -1.184660392 | K36: =data!B36 -> 2008-12-31 | L36: -2.101361503 | M36: 0.04089478021 | N36: -0.005437930182 | P36: =SUMPRODUCT(calc!$D$29:$F$29, data!C36:E36)/calc!$G$29 -> 1.555507236 | Q36: =SUMPRODUCT(calc!$D$30:$F$30, data!C36:E36) -> 1.874605867 | R36: =SUMPRODUCT(calc!$D$31:$F$31, data!C36:E36) -> -0.3832758993
B37: 2008-09-30 | C37: 0.8728 | D37: 3.0617 | E37: 4.1991 | G37: -0.865972713 | H37: -0.517103675 | I37: -0.3966153222 | K37: =data!B37 -> 2008-09-30 | L37: -1.021095413 | M37: 0.361550405 | N37: 0.03541363788 | P37: =SUMPRODUCT(calc!$D$29:$F$29, data!C37:E37)/calc!$G$29 -> 2.733126441 | Q37: =SUMPRODUCT(calc!$D$30:$F$30, data!C37:E37) -> 2.30917008 | R37: =SUMPRODUCT(calc!$D$31:$F$31, data!C37:E37) -> -0.2008277518
B38: 2008-06-30 | C38: 1.7749 | D38: 3.3838 | E38: 4.274 | G38: -0.4571141359 | H38: -0.3527603651 | I38: -0.3521490154 | K38: =data!B38 -> 2008-06-30 | L38: -0.6688430725 | M38: 0.09309852151 | N38: 0.0371987523 | P38: =SUMPRODUCT(calc!$D$29:$F$29, data!C38:E38)/calc!$G$29 -> 3.160333925 | Q38: =SUMPRODUCT(calc!$D$30:$F$30, data!C38:E38) -> 1.696178144 | R38: =SUMPRODUCT(calc!$D$31:$F$31, data!C38:E38) -> -0.2154790952
B39: 2008-03-31 | C39: 1.2376 | D39: 2.5417 | E39: 3.665 | G39: -0.7006344923 | H39: -0.7824204125 | I39: -0.7136974915 | K39: =data!B39 -> 2008-03-31 | L39: -1.269365711 | M39: -0.001549311626 | N39: -0.03380525974 | P39: =SUMPRODUCT(calc!$D$29:$F$29, data!C39:E39)/calc!$G$29 -> 2.494365622 | Q39: =SUMPRODUCT(calc!$D$30:$F$30, data!C39:E39) -> 1.616612138 | R39: =SUMPRODUCT(calc!$D$31:$F$31, data!C39:E39) -> -0.3962615659
B40: 2007-12-31 | C40: 3.2477 | D40: 3.4928 | E40: 4.2887 | G40: 0.210402672 | H40: -0.2971458951 | I40: -0.3434219832 | K40: =data!B40 -> 2007-12-31 | L40: -0.2571906007 | M40: -0.4197316504 | N40: -0.09045420085 | P40: =SUMPRODUCT(calc!$D$29:$F$29, data!C40:E40)/calc!$G$29 -> 3.678658652 | Q40: =SUMPRODUCT(calc!$D$30:$F$30, data!C40:E40) -> 0.5596147014 | R40: =SUMPRODUCT(calc!$D$31:$F$31, data!C40:E40) -> -0.5052956009
B41: 2007-09-30 | C41: 3.9549 | D41: 4.2026 | E41: 4.7278 | G41: 0.5309267666 | H41: 0.06501145151 | I41: -0.08273900149 | K41: =data!B41 -> 2007-09-30 | L41: 0.2880719439 | M41: -0.4569395013 | N41: -0.03429737459 | P41: =SUMPRODUCT(calc!$D$29:$F$29, data!C41:E41)/calc!$G$29 -> 4.297464675 | Q41: =SUMPRODUCT(calc!$D$30:$F$30, data!C41:E41) -> 0.382070945 | R41: =SUMPRODUCT(calc!$D$31:$F$31, data!C41:E41) -> -0.3741246117
B42: 2007-06-30 | C42: 4.8622 | D42: 4.839 | E42: 5.1216 | G42: 0.9421421385 | H42: 0.3897183202 | I42: 0.1510504729 | K42: =data!B42 -> 2007-06-30 | L42: 0.8462794122 | M42: -0.5881491071 | N42: -0.01483940189 | P42: =SUMPRODUCT(calc!$D$29:$F$29, data!C42:E42)/calc!$G$29 -> 4.940614312 | Q42: =SUMPRODUCT(calc!$D$30:$F$30, data!C42:E42) -> 0.006973821882 | R42: =SUMPRODUCT(calc!$D$31:$F$31, data!C42:E42) -> -0.3246581388
B43: 2007-03-31 | C43: 5.0463 | D43: 4.4671 | E43: 4.7558 | G43: 1.025581739 | H43: 0.1999658305 | I43: -0.06611608305 | K43: =data!B43 -> 2007-03-31 | L43: 0.6547813989 | M43: -0.8146779856 | N43: -0.06112833691 | P43: =SUMPRODUCT(calc!$D$29:$F$29, data!C43:E43)/calc!$G$29 -> 4.750424741 | Q43: =SUMPRODUCT(calc!$D$30:$F$30, data!C43:E43) -> -0.4181257326 | R43: =SUMPRODUCT(calc!$D$31:$F$31, data!C43:E43) -> -0.4544869036
B44: 2006-12-31 | C44: 5.0643 | D44: 4.5912 | E44: 4.7966 | G44: 1.033739875 | H44: 0.2632846903 | I44: -0.04189411617 | K44: =data!B44 -> 2006-12-31 | L44: 0.7110068081 | M44: -0.7958761352 | N44: -0.02725016313 | P44: =SUMPRODUCT(calc!$D$29:$F$29, data!C44:E44)/calc!$G$29 -> 4.812494919 | Q44: =SUMPRODUCT(calc!$D$30:$F$30, data!C44:E44) -> -0.3867837498 | R44: =SUMPRODUCT(calc!$D$31:$F$31, data!C44:E44) -> -0.3847990991
B45: 2006-09-30 | C45: 4.9524 | D45: 4.5024 | E45: 4.7396 | G45: 0.9830234639 | H45: 0.2179767552 | I45: -0.07573362872 | K45: =data!B45 -> 2006-09-30 | L45: 0.6361432188 | M45: -0.7835492929 | N45: -0.03093363297 | P45: =SUMPRODUCT(calc!$D$29:$F$29, data!C45:E45)/calc!$G$29 -> 4.726820494 | Q45: =SUMPRODUCT(calc!$D$30:$F$30, data!C45:E45) -> -0.3472687987 | R45: =SUMPRODUCT(calc!$D$31:$F$31, data!C45:E45) -> -0.3941990859
B46: 2006-06-30 | C46: 5.0266 | D46: 5.0098 | E46: 5.2003 | G46: 1.016653113 | H46: 0.476864664 | I46: 0.1977727472 | K46: =data!B46 -> 2006-06-30 | L46: 0.9667920799 | M46: -0.6044334107 | N46: 0.008416992029 | P46: =SUMPRODUCT(calc!$D$29:$F$29, data!C46:E46)/calc!$G$29 -> 5.078673142 | Q46: =SUMPRODUCT(calc!$D$30:$F$30, data!C46:E46) -> -0.04701733433 | R46: =SUMPRODUCT(calc!$D$31:$F$31, data!C46:E46) -> -0.2763421002
B47: 2006-03-31 | C47: 4.6204 | D47: 4.7429 | E47: 4.9684 | G47: 0.8325511797 | H47: 0.3406857462 | I47: 0.06009936198 | K47: =data!B47 -> 2006-03-31 | L47: 0.7033211573 | M47: -0.5634722048 | N47: 0.02566323989 | P47: =SUMPRODUCT(calc!$D$29:$F$29, data!C47:E47)/calc!$G$29 -> 4.778412848 | Q47: =SUMPRODUCT(calc!$D$30:$F$30, data!C47:E47) -> 0.09140371981 | R47: =SUMPRODUCT(calc!$D$31:$F$31, data!C47:E47) -> -0.2527780905
B48: 2005-12-31 | C48: 4.2388 | D48: 4.2755 | E48: 4.4997 | G48: 0.6595986988 | H48: 0.1022068172 | I48: -0.2181564192 | K48: =data!B48 -> 2005-12-31 | L48: 0.3041236219 | M48: -0.6316953071 | N48: 0.03973363497 | P48: =SUMPRODUCT(calc!$D$29:$F$29, data!C48:E48)/calc!$G$29 -> 4.338307323 | Q48: =SUMPRODUCT(calc!$D$30:$F$30, data!C48:E48) -> 0.03640446239 | R48: =SUMPRODUCT(calc!$D$31:$F$31, data!C48:E48) -> -0.258121409
B49: 2005-09-30 | C49: 3.5399 | D49: 4.1798 | E49: 4.4921 | G49: 0.3428364113 | H49: 0.05337833303 | I49: -0.2226683542 | K49: =data!B49 -> 2005-09-30 | L49: 0.09520847786 | M49: -0.3924625426 | N49: 0.08292011647 | P49: =SUMPRODUCT(calc!$D$29:$F$29, data!C49:E49)/calc!$G$29 -> 4.077015886 | Q49: =SUMPRODUCT(calc!$D$30:$F$30, data!C49:E49) -> 0.5677230365 | R49: =SUMPRODUCT(calc!$D$31:$F$31, data!C49:E49) -> -0.154732887
B50: 2005-06-30 | C50: 3.0736 | D50: 3.6854 | E50: 4.0315 | G50: 0.1314953687 | H50: -0.1988766574 | I50: -0.4961153626 | K50: =data!B50 -> 2005-06-30 | L50: -0.3308972954 | M50: -0.4299163066 | N50: 0.09301805769 | P50: =SUMPRODUCT(calc!$D$29:$F$29, data!C50:E50)/calc!$G$29 -> 3.602953509 | Q50: =SUMPRODUCT(calc!$D$30:$F$30, data!C50:E50) -> 0.5797300698 | R50: =SUMPRODUCT(calc!$D$31:$F$31, data!C50:E50) -> -0.1647519824
B51: 2005-03-31 | C51: 2.7876 | D51: 4.1399 | E51: 4.6091 | G51: 0.001871653966 | H51: 0.03302037567 | I51: -0.1532083022 | K51: =data!B51 -> 2005-03-31 | L51: -0.06764481926 | M51: -0.08570106768 | N51: 0.1124550469 | P51: =SUMPRODUCT(calc!$D$29:$F$29, data!C51:E51)/calc!$G$29 -> 3.859148105 | Q51: =SUMPRODUCT(calc!$D$30:$F$30, data!C51:E51) -> 1.224139924 | R51: =SUMPRODUCT(calc!$D$31:$F$31, data!C51:E51) -> -0.06503898184
B52: 2004-12-31 | C52: 2.2158 | D52: 3.6497 | E52: 4.3612 | G52: -0.2572851295 | H52: -0.2170916719 | I52: -0.300380498 | K52: =data!B52 -> 2004-12-31 | L52: -0.4464133189 | M52: -0.01083069836 | N52: 0.06442608238 | P52: =SUMPRODUCT(calc!$D$29:$F$29, data!C52:E52)/calc!$G$29 -> 3.4232734 | Q52: =SUMPRODUCT(calc!$D$30:$F$30, data!C52:E52) -> 1.44517914 | R52: =SUMPRODUCT(calc!$D$31:$F$31, data!C52:E52) -> -0.166286504
B53: 2004-09-30 | C53: 1.717 | D53: 3.4283 | E53: 4.3177 | G53: -0.4833561397 | H53: -0.3300553751 | I53: -0.3262053891 | K53: =data!B53 -> 2004-09-30 | L53: -0.6550504762 | M53: 0.1330307167 | N53: 0.04681203238 | P53: =SUMPRODUCT(calc!$D$29:$F$29, data!C53:E53)/calc!$G$29 -> 3.171475554 | Q53: =SUMPRODUCT(calc!$D$30:$F$30, data!C53:E53) -> 1.775357185 | R53: =SUMPRODUCT(calc!$D$31:$F$31, data!C53:E53) -> -0.190966657
B54: 2004-06-30 | C54: 1.2937 | D54: 3.8491 | E54: 4.8752 | G54: -0.6752083021 | H54: -0.1153529075 | I54: 0.004768790597 | K54: =data!B54 -> 2004-06-30 | L54: -0.4437351782 | M54: 0.5164327361 | N54: 0.07504403075 | P54: =SUMPRODUCT(calc!$D$29:$F$29, data!C54:E54)/calc!$G$29 -> 3.36501975 | Q54: =SUMPRODUCT(calc!$D$30:$F$30, data!C54:E54) -> 2.510623899 | R54: =SUMPRODUCT(calc!$D$31:$F$31, data!C54:E54) -> -0.07206191527
B55: 2004-03-31 | C55: 0.9511 | D55: 2.8353 | E55: 4.1027 | G55: -0.8304848219 | H55: -0.6326185007 | I55: -0.4538456557 | K55: =data!B55 -> 2004-03-31 | L55: -1.103004317 | M55: 0.2797751092 | N55: -0.03153491642 | P55: =SUMPRODUCT(calc!$D$29:$F$29, data!C55:E55)/calc!$G$29 -> 2.648489465 | Q55: =SUMPRODUCT(calc!$D$30:$F$30, data!C55:E55) -> 2.151242375 | R55: =SUMPRODUCT(calc!$D$31:$F$31, data!C55:E55) -> -0.3431763408
B56: 2003-12-31 | C56: 0.9141 | D56: 3.2401 | E56: 4.5583 | G56: -0.8472543235 | H56: -0.4260796251 | I56: -0.1833670256 | K56: =data!B56 -> 2003-12-31 | L56: -0.8334651564 | M56: 0.4878351712 | N56: -0.01897051693 | P56: =SUMPRODUCT(calc!$D$29:$F$29, data!C56:E56)/calc!$G$29 -> 2.927434243 | Q56: =SUMPRODUCT(calc!$D$30:$F$30, data!C56:E56) -> 2.518530699 | R56: =SUMPRODUCT(calc!$D$31:$F$31, data!C56:E56) -> -0.2751970149
B57: 2003-09-30 | C57: 0.9269 | D57: 2.8715 | E57: 4.2585 | G57: -0.8414529824 | H57: -0.614148374 | I57: -0.3613509881 | K57: =data!B57 -> 2003-09-30 | L57: -1.04480897 | M57: 0.3459787642 | N57: -0.06684903996 | P57: =SUMPRODUCT(calc!$D$29:$F$29, data!C57:E57)/calc!$G$29 -> 2.705001897 | Q57: =SUMPRODUCT(calc!$D$30:$F$30, data!C57:E57) -> 2.268168657 | R57: =SUMPRODUCT(calc!$D$31:$F$31, data!C57:E57) -> -0.3972422087
B58: 2003-06-30 | C58: 0.8603 | D58: 2.52 | E58: 3.7972 | G58: -0.8716380852 | H58: -0.793492284 | I58: -0.6352135694 | K58: =data!B58 -> 2003-06-30 | L58: -1.326384549 | M58: 0.1777824336 | N58: -0.04445976 | P58: =SUMPRODUCT(calc!$D$29:$F$29, data!C58:E58)/calc!$G$29 -> 2.409003449 | Q58: =SUMPRODUCT(calc!$D$30:$F$30, data!C58:E58) -> 1.988705226 | R58: =SUMPRODUCT(calc!$D$31:$F$31, data!C58:E58) -> -0.3943610911
B59: 2003-03-31 | C59: 1.1357 | D59: 2.8506 | E59: 4.1898 | G59: -0.746818606 | H59: -0.6248120659 | I59: -0.4021365058 | K59: =data!B59 -> 2003-03-31 | L59: -1.021722836 | M59: 0.2453666366 | N59: -0.07562788796 | P59: =SUMPRODUCT(calc!$D$29:$F$29, data!C59:E59)/calc!$G$29 -> 2.742413265 | Q59: =SUMPRODUCT(calc!$D$30:$F$30, data!C59:E59) -> 2.059138844 | R59: =SUMPRODUCT(calc!$D$31:$F$31, data!C59:E59) -> -0.4266416601
B60: 2002-12-31 | C60: 1.1279 | D60: 2.875 | E60: 4.1961 | G60: -0.7503537983 | H60: -0.6123625882 | I60: -0.3983963492 | K60: =data!B60 -> 2002-12-31 | L60: -1.014133215 | M60: 0.2525253465 | N60: -0.0671057772 | P60: =SUMPRODUCT(calc!$D$29:$F$29, data!C60:E60)/calc!$G$29 -> 2.750379389 | Q60: =SUMPRODUCT(calc!$D$30:$F$30, data!C60:E60) -> 2.073252964 | R60: =SUMPRODUCT(calc!$D$31:$F$31, data!C60:E60) -> -0.4091366379
B61: 2002-09-30 | C61: 1.5355 | D61: 2.8083 | E61: 4.0307 | G61: -0.5656173433 | H61: -0.6463945621 | I61: -0.4965903031 | K61: =data!B61 -> 2002-09-30 | L61: -0.9876455837 | M61: 0.04290950766 | N61: -0.08405839169 | P61: =SUMPRODUCT(calc!$D$29:$F$29, data!C61:E61)/calc!$G$29 -> 2.804084838 | Q61: =SUMPRODUCT(calc!$D$30:$F$30, data!C61:E61) -> 1.642318851 | R61: =SUMPRODUCT(calc!$D$31:$F$31, data!C61:E61) -> -0.4690724395
B62: 2002-06-30 | C62: 1.65 | D62: 4.1554 | E62: 5.2841 | G62: -0.5137225344 | H62: 0.04092885534 | I62: 0.2475227674 | K62: =data!B62 -> 2002-06-30 | L62: -0.1203569385 | M62: 0.5585577731 | N62: 0.01951807977 | P62: =SUMPRODUCT(calc!$D$29:$F$29, data!C62:E62)/calc!$G$29 -> 3.721647761 | Q62: =SUMPRODUCT(calc!$D$30:$F$30, data!C62:E62) -> 2.522450674 | R62: =SUMPRODUCT(calc!$D$31:$F$31, data!C62:E62) -> -0.1528193553
B63: 2002-03-31 | C63: 1.77 | D63: 4.9581 | E63: 5.9089 | G63: -0.4593349618 | H63: 0.4504860576 | I63: 0.6184513189 | K63: =data!B63 -> 2002-03-31 | L63: 0.3677773481 | M63: 0.8047137081 | N63: 0.1165504152 | P63: =SUMPRODUCT(calc!$D$29:$F$29, data!C63:E63)/calc!$G$29 -> 4.244476361 | Q63: =SUMPRODUCT(calc!$D$30:$F$30, data!C63:E63) -> 2.934289657 | R63: =SUMPRODUCT(calc!$D$31:$F$31, data!C63:E63) -> 0.0920590526
B64: 2001-12-31 | C64: 1.71 | D64: 4.4803 | E64: 5.6319 | G64: -0.4865287481 | H64: 0.2067007938 | I64: 0.4540031615 | K64: =data!B64 -> 2001-12-31 | L64: 0.1126092505 | M64: 0.6871849997 | N64: 0.02549989082 | P64: =SUMPRODUCT(calc!$D$29:$F$29, data!C64:E64)/calc!$G$29 -> 3.968568359 | Q64: =SUMPRODUCT(calc!$D$30:$F$30, data!C64:E64) -> 2.735846131 | R64: =SUMPRODUCT(calc!$D$31:$F$31, data!C64:E64) -> -0.1104555703
B65: 2001-09-30 | C65: 2.32 | D65: 4 | E65: 5.0746 | G65: -0.2100585873 | H65: -0.0383600312 | I65: 0.1231477169 | K65: =data!B65 -> 2001-09-30 | L65: -0.06936084747 | M65: 0.2316798048 | N65: -0.04769699325 | P65: =SUMPRODUCT(calc!$D$29:$F$29, data!C65:E65)/calc!$G$29 -> 3.814969458 | Q65: =SUMPRODUCT(calc!$D$30:$F$30, data!C65:E65) -> 1.842758489 | R65: =SUMPRODUCT(calc!$D$31:$F$31, data!C65:E65) -> -0.3226657888
B66: 2001-06-30 | C66: 3.72 | D66: 5.0351 | E66: 5.7432 | G66: 0.4244630932 | H66: 0.4897733437 | I66: 0.5200792623 | K66: =data!B66 -> 2001-06-30 | L66: 0.828972725 | M66: 0.05518656911 | N66: -0.01696904618 | P66: =SUMPRODUCT(calc!$D$29:$F$29, data!C66:E66)/calc!$G$29 -> 4.845932886 | Q66: =SUMPRODUCT(calc!$D$30:$F$30, data!C66:E66) -> 1.309010446 | R66: =SUMPRODUCT(calc!$D$31:$F$31, data!C66:E66) -> -0.2392959952
B67: 2001-03-31 | C67: 4.36 | D67: 4.6704 | E67: 5.2878 | G67: 0.7145301471 | H67: 0.3036944703 | I67: 0.2497193674 | K67: =data!B67 -> 2001-03-31 | L67: 0.7246070478 | M67: -0.3652693807 | N67: -0.08164760047 | P67: =SUMPRODUCT(calc!$D$29:$F$29, data!C67:E67)/calc!$G$29 -> 4.775708554 | Q67: =SUMPRODUCT(calc!$D$30:$F$30, data!C67:E67) -> 0.4721802207 | R67: =SUMPRODUCT(calc!$D$31:$F$31, data!C67:E67) -> -0.4261796498
B68: 2000-12-31 | C68: 5.94 | D68: 5.0626 | E68: 5.3546 | G68: 1.430633187 | H68: 0.5038045173 | I68: 0.2893769014 | K68: =data!B68 -> 2000-12-31 | L68: 1.26729847 | M68: -0.8731787622 | N68: -0.1256293577 | P68: =SUMPRODUCT(calc!$D$29:$F$29, data!C68:E68)/calc!$G$29 -> 5.443391117 | Q68: =SUMPRODUCT(calc!$D$30:$F$30, data!C68:E68) -> -0.6692085257 | R68: =SUMPRODUCT(calc!$D$31:$F$31, data!C68:E68) -> -0.5501508828
B69: 2000-09-30 | C69: 6.34 | D69: 5.8243 | E69: 5.9977 | G69: 1.611925095 | H69: 0.8924425153 | I69: 0.6711697174 | K69: =data!B69 -> 2000-09-30 | L69: 1.820255024 | M69: -0.7245972836 | N69: -0.08279715988 | P69: =SUMPRODUCT(calc!$D$29:$F$29, data!C69:E69)/calc!$G$29 -> 6.048704424 | Q69: =SUMPRODUCT(calc!$D$30:$F$30, data!C69:E69) -> -0.4750888362 | R69: =SUMPRODUCT(calc!$D$31:$F$31, data!C69:E69) -> -0.4175936813
B70: 2000-06-30 | C70: 5.91 | D70: 6.1783 | E70: 6.2061 | G70: 1.417036293 | H70: 1.073061987 | I70: 0.7948917247 | K70: =data!B70 -> 2000-06-30 | L70: 1.8900687 | M70: -0.4664389732 | N70: 0.03717163162 | P70: =SUMPRODUCT(calc!$D$29:$F$29, data!C70:E70)/calc!$G$29 -> 6.100853735 | Q70: =SUMPRODUCT(calc!$D$30:$F$30, data!C70:E70) -> 0.04883245627 | R70: =SUMPRODUCT(calc!$D$31:$F$31, data!C70:E70) -> -0.1511361851
B71: 2000-03-31 | C71: 6.22 | D71: 6.2338 | E71: 6.2236 | G71: 1.557537523 | H71: 1.101379446 | I71: 0.8052810487 | K71: =data!B71 -> 2000-03-31 | L71: 1.991535123 | M71: -0.5664661428 | N71: 0.01847558113 | P71: =SUMPRODUCT(calc!$D$29:$F$29, data!C71:E71)/calc!$G$29 -> 6.225943343 | Q71: =SUMPRODUCT(calc!$D$30:$F$30, data!C71:E71) -> -0.176266049 | R71: =SUMPRODUCT(calc!$D$31:$F$31, data!C71:E71) -> -0.1947814708
B72: 1999-12-31 | C72: 5.53 | D72: 6.4112 | E72: 6.6638 | G72: 1.24480898 | H72: 1.191893271 | I72: 1.066617074 | K72: =data!B72 -> 1999-12-31 | L72: 2.021128388 | M72: -0.150037982 | N72: 0.01896289818 | P72: =SUMPRODUCT(calc!$D$29:$F$29, data!C72:E72)/calc!$G$29 -> 6.210554092 | Q72: =SUMPRODUCT(calc!$D$30:$F$30, data!C72:E72) -> 0.6585448526 | R72: =SUMPRODUCT(calc!$D$31:$F$31, data!C72:E72) -> -0.1337280091
B73: 1999-09-30 | C73: 5.03 | D73: 5.8886 | E73: 6.206 | G73: 1.018194094 | H73: 0.9252499503 | I73: 0.7948323571 | K73: =data!B73 -> 1999-09-30 | L73: 1.578869461 | M73: -0.1769478606 | N73: 0.02063589693 | P73: =SUMPRODUCT(calc!$D$29:$F$29, data!C73:E73)/calc!$G$29 -> 5.716838536 | Q73: =SUMPRODUCT(calc!$D$30:$F$30, data!C73:E73) -> 0.693923763 | R73: =SUMPRODUCT(calc!$D$31:$F$31, data!C73:E73) -> -0.1590612476
B74: 1999-06-30 | C74: 4.95 | D74: 5.7385 | E74: 6.0592 | G74: =(C74 - C$5)/C$6 -> 0.9819357125 | H74: =(D74 - D$5)/D$6 -> 0.8486652536 | I74: =(E74 - E$5)/E$6 -> 0.7076807704 | K74: =data!B74 -> 1999-06-30 | L74: 1.462734631 | M74: -0.2128033443 | N74: 0.01909621682 | P74: =SUMPRODUCT(calc!$D$29:$F$29, data!C74:E74)/calc!$G$29 -> 5.590491325 | Q74: =SUMPRODUCT(calc!$D$30:$F$30, data!C74:E74) -> 0.6448136755 | R74: =SUMPRODUCT(calc!$D$31:$F$31, data!C74:E74) -> -0.1734896736
B75: 1999-03-31 | C75: 4.72 | D75: 5.2245 | E75: 5.5648 | G75: 0.877692865 | H75: 0.5864098631 | I75: 0.4141675248 | K75: =data!B75 -> 1999-03-31 | L75: 1.079031968 | M75: -0.3484383679 | N75: 0.006061891896 | P75: =SUMPRODUCT(calc!$D$29:$F$29, data!C75:E75)/calc!$G$29 -> 5.174797321 | Q75: =SUMPRODUCT(calc!$D$30:$F$30, data!C75:E75) -> 0.4467749025 | R75: =SUMPRODUCT(calc!$D$31:$F$31, data!C75:E75) -> -0.238563064
B76: 1998-12-31 | C76: 4.45 | D76: 4.6663 | E76: 5.0063 | G76: 0.7553208266 | H76: 0.3016025499 | I76: 0.08259966945 | K76: =data!B76 -> 1998-12-31 | L76: 0.649815743 | M76: -0.4960178395 | N76: 0.001468886196 | P76: =SUMPRODUCT(calc!$D$29:$F$29, data!C76:E76)/calc!$G$29 -> 4.709633121 | Q76: =SUMPRODUCT(calc!$D$30:$F$30, data!C76:E76) -> 0.2350146136 | R76: =SUMPRODUCT(calc!$D$31:$F$31, data!C76:E76) -> -0.2919335674
B77: 1998-09-30 | C77: 4.48 | D77: 4.3375 | E77: 4.6361 | G77: 0.7689177197 | H77: 0.1338407359 | I77: -0.1371790594 | K77: =data!B77 -> 1998-09-30 | L77: 0.4308211387 | M77: -0.6650440799 | N77: -0.008684177435 | P77: =SUMPRODUCT(calc!$D$29:$F$29, data!C77:E77)/calc!$G$29 -> 4.482996344 | Q77: =SUMPRODUCT(calc!$D$30:$F$30, data!C77:E77) -> -0.06335501366 | R77: =SUMPRODUCT(calc!$D$31:$F$31, data!C77:E77) -> -0.3470585555
B78: 1998-06-30 | C78: 5.31 | D78: 5.4395 | E78: 5.6004 | G78: 1.14509843 | H78: 0.6961081296 | I78: 0.4353023783 | K78: =data!B78 -> 1998-06-30 | L78: 1.306149752 | M78: -0.5282955985 | N78: 0.01347924134 | P78: =SUMPRODUCT(calc!$D$29:$F$29, data!C78:E78)/calc!$G$29 -> 5.451236362 | Q78: =SUMPRODUCT(calc!$D$30:$F$30, data!C78:E78) -> 0.03875393727 | R78: =SUMPRODUCT(calc!$D$31:$F$31, data!C78:E78) -> -0.2371399001
B79: 1998-03-31 | C79: 5.26 | D79: 5.6004 | E79: 5.7956 | G79: 1.122436942 | H79: 0.7782032508 | I79: 0.5511878668 | K79: =data!B79 -> 1998-03-31 | L79: 1.409165438 | M79: -0.4280332568 | N79: 0.01770177747 | P79: =SUMPRODUCT(calc!$D$29:$F$29, data!C79:E79)/calc!$G$29 -> 5.555404436 | Q79: =SUMPRODUCT(calc!$D$30:$F$30, data!C79:E79) -> 0.2209263047 | R79: =SUMPRODUCT(calc!$D$31:$F$31, data!C79:E79) -> -0.2093387499
B80: 1997-12-31 | C80: 5.42 | D80: 5.6369 | E80: 5.8366 | G80: 1.194953705 | H80: 0.7968264449 | I80: 0.5755285688 | K80: =data!B80 -> 1997-12-31 | L80: 1.474865008 | M80: -0.4678171759 | N80: 0.0004165125342 | P80: =SUMPRODUCT(calc!$D$29:$F$29, data!C80:E80)/calc!$G$29 -> 5.633313802 | Q80: =SUMPRODUCT(calc!$D$30:$F$30, data!C80:E80) -> 0.1248873149 | R80: =SUMPRODUCT(calc!$D$31:$F$31, data!C80:E80) -> -0.2438609683
B81: 1997-09-30 | C81: 5.33 | D81: 5.9732 | E81: 6.2477 | G81: 1.154163026 | H81: 0.9684149426 | I81: 0.8195886321 | K81: =data!B81 -> 1997-09-30 | L81: 1.694923106 | M81: -0.2623699785 | N81: 0.006555651444 | P81: =SUMPRODUCT(calc!$D$29:$F$29, data!C81:E81)/calc!$G$29 -> 5.856760559 | Q81: =SUMPRODUCT(calc!$D$30:$F$30, data!C81:E81) -> 0.4960085944 | R81: =SUMPRODUCT(calc!$D$31:$F$31, data!C81:E81) -> -0.1911334597
B82: 1997-06-30 | C82: 5.36 | D82: 6.313 | E82: 6.5736 | G82: 1.167759919 | H82: 1.141789226 | I82: 1.013067529 | K82: =data!B82 -> 1997-06-30 | L82: 1.917309213 | M82: -0.1293063615 | N82: 0.0292733636 | P82: =SUMPRODUCT(calc!$D$29:$F$29, data!C82:E82)/calc!$G$29 -> 6.091815269 | Q82: =SUMPRODUCT(calc!$D$30:$F$30, data!C82:E82) -> 0.7228514351 | R82: =SUMPRODUCT(calc!$D$31:$F$31, data!C82:E82) -> -0.1171680967
B83: 1997-03-31 | C83: 5.52 | D83: 6.6972 | E83: 6.9518 | G83: 1.240276682 | H83: 1.337817477 | I83: 1.237595663 | K83: =data!B83 -> 1997-03-31 | L83: 2.204054634 | M83: -0.02063748649 | N83: 0.03744515666 | P83: =SUMPRODUCT(calc!$D$29:$F$29, data!C83:E83)/calc!$G$29 -> 6.401563784 | Q83: =SUMPRODUCT(calc!$D$30:$F$30, data!C83:E83) -> 0.8853804346 | R83: =SUMPRODUCT(calc!$D$31:$F$31, data!C83:E83) -> -0.07047131564
B84: 1996-12-31 | C84: 5.29 | D84: 6.1371 | E84: 6.4655 | G84: 1.136033835 | H84: 1.052040737 | I84: 0.9488911906 | K84: =data!B84 -> 1996-12-31 | L84: 1.8091231 | M84: -0.1575444713 | N84: 0.003228935586 | P84: =SUMPRODUCT(calc!$D$29:$F$29, data!C84:E84)/calc!$G$29 -> 5.972718349 | Q84: =SUMPRODUCT(calc!$D$30:$F$30, data!C84:E84) -> 0.6840707176 | R84: =SUMPRODUCT(calc!$D$31:$F$31, data!C84:E84) -> -0.1763070887
B85: 1996-09-30 | C85: 5.14 | D85: 6.4313 | E85: 6.7577 | G85: 1.068049369 | H85: 1.202148784 | I85: 1.122363218 | K85: =data!B85 -> 1996-09-30 | L85: 1.960472686 | M85: 0.02420471118 | N85: 0.03938685278 | P85: =SUMPRODUCT(calc!$D$29:$F$29, data!C85:E85)/calc!$G$29 -> 6.122703057 | Q85: =SUMPRODUCT(calc!$D$30:$F$30, data!C85:E85) -> 1.025463867 | R85: =SUMPRODUCT(calc!$D$31:$F$31, data!C85:E85) -> -0.07412071025
B86: 1996-06-30 | C86: 5.22 | D86: 6.4184 | E86: 6.7166 | G86: 1.104307751 | H86: 1.195566888 | I86: 1.097963148 | K86: =data!B86 -> 1996-06-30 | L86: 1.962772745 | M86: -0.01993087739 | N86: 0.03904840374 | P86: =SUMPRODUCT(calc!$D$29:$F$29, data!C86:E86)/calc!$G$29 -> 6.130433234 | Q86: =SUMPRODUCT(calc!$D$30:$F$30, data!C86:E86) -> 0.9358454014 | R86: =SUMPRODUCT(calc!$D$31:$F$31, data!C86:E86) -> -0.08082878002
B87: 1996-03-31 | C87: 5.29 | D87: 6.0844 | E87: 6.4442 | G87: 1.136033835 | H87: 1.025151906 | I87: 0.936245899 | K87: =data!B87 -> 1996-03-31 | L87: 1.785824615 | M87: -0.1696527408 | N87: -0.01068088138 | P87: =SUMPRODUCT(calc!$D$29:$F$29, data!C87:E87)/calc!$G$29 -> 5.947506499 | Q87: =SUMPRODUCT(calc!$D$30:$F$30, data!C87:E87) -> 0.6623853102 | R87: =SUMPRODUCT(calc!$D$31:$F$31, data!C87:E87) -> -0.2055479638
B88: 1995-12-31 | C88: 5.17 | D88: 5.338 | E88: 5.7244 | G88: 1.081646262 | H88: 0.6443203433 | I88: 0.5089181599 | K88: =data!B88 -> 1995-12-31 | L88: 1.282267264 | M88: -0.4439269579 | N88: -0.05314654198 | P88: =SUMPRODUCT(calc!$D$29:$F$29, data!C88:E88)/calc!$G$29 -> 5.412394942 | Q88: =SUMPRODUCT(calc!$D$30:$F$30, data!C88:E88) -> 0.204561389 | R88: =SUMPRODUCT(calc!$D$31:$F$31, data!C88:E88) -> -0.3523052658
B89: 1995-09-30 | C89: 5.5 | D89: 5.9532 | E89: 6.2332 | G89: 1.231212087 | H89: 0.9582104527 | I89: 0.810980335 | K89: =data!B89 -> 1995-09-30 | L89: 1.726997828 | M89: -0.3301057154 | N89: -0.01575744694 | P89: =SUMPRODUCT(calc!$D$29:$F$29, data!C89:E89)/calc!$G$29 -> 5.899993334 | Q89: =SUMPRODUCT(calc!$D$30:$F$30, data!C89:E89) -> 0.3496339982 | R89: =SUMPRODUCT(calc!$D$31:$F$31, data!C89:E89) -> -0.2409439985
B90: 1995-06-30 | C90: 5.62 | D90: 5.9522 | E90: 6.2687 | G90: 1.28559966 | H90: 0.9577002282 | I90: 0.8320558209 | K90: =data!B90 -> 1995-06-30 | L90: 1.769280359 | M90: -0.3608087082 | N90: -0.04167960603 | P90: =SUMPRODUCT(calc!$D$29:$F$29, data!C90:E90)/calc!$G$29 -> 5.95025205 | Q90: =SUMPRODUCT(calc!$D$30:$F$30, data!C90:E90) -> 0.2754530845 | R90: =SUMPRODUCT(calc!$D$31:$F$31, data!C90:E90) -> -0.2917914737
B91: 1995-03-31 | C91: 5.7 | D91: 6.9997 | E91: 7.2472 | G91: 1.321858041 | H91: 1.492160387 | I91: 1.412967453 | K91: =data!B91 -> 1995-03-31 | L91: 2.442711251 | M91: 0.04474025552 | N91: 0.03857951915 | P91: =SUMPRODUCT(calc!$D$29:$F$29, data!C91:E91)/calc!$G$29 -> 6.66211168 | Q91: =SUMPRODUCT(calc!$D$30:$F$30, data!C91:E91) -> 0.9692491451 | R91: =SUMPRODUCT(calc!$D$31:$F$31, data!C91:E91) -> -0.04581594877
B92: 1994-12-31 | C92: 5.53 | D92: 7.7701 | E92: 7.8039 | G92: 1.24480898 | H92: 1.885237338 | I92: 1.743466692 | K92: =data!B92 -> 1994-12-31 | L92: 2.824175006 | M92: 0.3681785241 | N92: 0.178396844 | P92: =SUMPRODUCT(calc!$D$29:$F$29, data!C92:E92)/calc!$G$29 -> 7.057438246 | Q92: =SUMPRODUCT(calc!$D$30:$F$30, data!C92:E92) -> 1.564702686 | R92: =SUMPRODUCT(calc!$D$31:$F$31, data!C92:E92) -> 0.2846628854
B93: 1994-09-30 | C93: 4.62 | D93: 7.206 | E93: 7.6521 | G93: 0.8323698878 | H93: 1.5974197 | I93: 1.653346727 | K93: =data!B93 -> 1994-09-30 | L93: 2.370090374 | M93: 0.5911491613 | N93: 0.1065786877 | P93: =SUMPRODUCT(calc!$D$29:$F$29, data!C93:E93)/calc!$G$29 -> 6.518868126 | Q93: =SUMPRODUCT(calc!$D$30:$F$30, data!C93:E93) -> 2.096638692 | R93: =SUMPRODUCT(calc!$D$31:$F$31, data!C93:E93) -> 0.1551309922
B94: 1994-06-30 | C94: 4.07 | D94: 6.946 | E94: 7.4804 | G94: 0.5830935133 | H94: 1.464761331 | I94: 1.551412617 | K94: =data!B94 -> 1994-06-30 | L94: 2.092855675 | M94: 0.7052285592 | N94: 0.1225263828 | P94: =SUMPRODUCT(calc!$D$29:$F$29, data!C94:E94)/calc!$G$29 -> 6.194558094 | Q94: =SUMPRODUCT(calc!$D$30:$F$30, data!C94:E94) -> 2.385280681 | R94: =SUMPRODUCT(calc!$D$31:$F$31, data!C94:E94) -> 0.1857447662
B95: 1994-03-31 | C95: 3.55 | D95: 6.2646 | E95: 7.0205 | G95: 0.347414032 | H95: 1.117094361 | I95: 1.278381181 | K95: =data!B95 -> 1994-03-31 | L95: 1.596573578 | M95: 0.6706425261 | N95: 0.06360955656 | P95: =SUMPRODUCT(calc!$D$29:$F$29, data!C95:E95)/calc!$G$29 -> 5.639084894 | Q95: =SUMPRODUCT(calc!$D$30:$F$30, data!C95:E95) -> 2.407582584 | R95: =SUMPRODUCT(calc!$D$31:$F$31, data!C95:E95) -> 0.04202179499
B96: 1993-12-31 | C96: 3.06 | D96: 5.2124 | E96: 6.0699 | G96: 0.1253314438 | H96: 0.5802361467 | I96: 0.7140331 | K96: =data!B96 -> 1993-12-31 | L96: 0.8272874506 | M96: 0.421287937 | N96: 0.01836226854 | P96: =SUMPRODUCT(calc!$D$29:$F$29, data!C96:E96)/calc!$G$29 -> 4.802404193 | Q96: =SUMPRODUCT(calc!$D$30:$F$30, data!C96:E96) -> 2.053437458 | R96: =SUMPRODUCT(calc!$D$31:$F$31, data!C96:E96) -> -0.1213299264
B97: 1993-09-30 | C97: 2.98 | D97: 4.8159 | E97: 5.6687 | G97: 0.08907306206 | H97: 0.3779321344 | I97: 0.4758504257 | K97: =data!B97 -> 1993-09-30 | L97: 0.5492208085 | M97: 0.2748471002 | N97: 0.003988895719 | P97: =SUMPRODUCT(calc!$D$29:$F$29, data!C97:E97)/calc!$G$29 -> 4.506620146 | Q97: =SUMPRODUCT(calc!$D$30:$F$30, data!C97:E97) -> 1.812023709 | R97: =SUMPRODUCT(calc!$D$31:$F$31, data!C97:E97) -> -0.1845446022
B98: 1993-06-30 | C98: 3.07 | D98: 5.1037 | E98: 6.0434 | G98: 0.1298637415 | H98: 0.5247747441 | I98: 0.698300695 | K98: =data!B98 -> 1993-06-30 | L98: 0.7877360425 | M98: 0.3988086817 | N98: -0.01733628429 | P98: =SUMPRODUCT(calc!$D$29:$F$29, data!C98:E98)/calc!$G$29 -> 4.759439532 | Q98: =SUMPRODUCT(calc!$D$30:$F$30, data!C98:E98) -> 2.011042213 | R98: =SUMPRODUCT(calc!$D$31:$F$31, data!C98:E98) -> -0.1940364133
B99: 1993-03-31 | C99: 2.94 | D99: 5.3575 | E99: 6.5141 | G99: 0.07094387119 | H99: 0.654269721 | I99: 0.9777438276 | K99: =data!B99 -> 1993-03-31 | L99: 0.992996118 | M99: 0.632034849 | N99: -0.05979592113 | P99: =SUMPRODUCT(calc!$D$29:$F$29, data!C99:E99)/calc!$G$29 -> 4.961445627 | Q99: =SUMPRODUCT(calc!$D$30:$F$30, data!C99:E99) -> 2.434415454 | R99: =SUMPRODUCT(calc!$D$31:$F$31, data!C99:E99) -> -0.2299086642
B100: 1992-12-31 | C100: 3.13 | D100: 6.0474 | E100: 7.218 | G100: 0.1570575278 | H100: 1.0062736 | I100: 1.395632124 | K100: =data!B100 -> 1992-12-31 | L100: 1.491702036 | M100: 0.8706678802 | N100: -0.04248681662 | P100: =SUMPRODUCT(calc!$D$29:$F$29, data!C100:E100)/calc!$G$29 -> 5.494458761 | Q100: =SUMPRODUCT(calc!$D$30:$F$30, data!C100:E100) -> 2.817731804 | R100: =SUMPRODUCT(calc!$D$31:$F$31, data!C100:E100) -> -0.1358816201
B101: 1992-09-30 | C101: 2.63 | D101: 5.5102 | E101: 6.8306 | G101: -0.06955735807 | H101: 0.7321810014 | I101: 1.165642174 | K101: =data!B101 -> 1992-09-30 | L101: 1.069109911 | M101: 0.8670048118 | N101: -0.07039585499 | P101: =SUMPRODUCT(calc!$D$29:$F$29, data!C101:E101)/calc!$G$29 -> 5.019169736 | Q101: =SUMPRODUCT(calc!$D$30:$F$30, data!C101:E101) -> 2.891910764 | R101: =SUMPRODUCT(calc!$D$31:$F$31, data!C101:E101) -> -0.2126533215
B102: 1992-06-30 | C102: 3.53 | D102: 6.3926 | E102: 7.54 | G102: 0.3383494365 | H102: 1.182403096 | I102: 1.586795686 | K102: =data!B102 -> 1992-06-30 | L102: 1.808228008 | M102: 0.8702968333 | N102: -0.05807636934 | P102: =SUMPRODUCT(calc!$D$29:$F$29, data!C102:E102)/calc!$G$29 -> 5.849641606 | Q102: =SUMPRODUCT(calc!$D$30:$F$30, data!C102:E102) -> 2.750757675 | R102: =SUMPRODUCT(calc!$D$31:$F$31, data!C102:E102) -> -0.1476559749
B103: 1992-03-31 | C103: 4.01 | D103: 6.9916 | E103: 7.9262 | G103: 0.555899727 | H103: 1.488027568 | I103: 1.816073225 | K103: =data!B103 -> 1992-03-31 | L103: 2.244107581 | M103: 0.8861974972 | N103: -0.00276991393 | P103: =SUMPRODUCT(calc!$D$29:$F$29, data!C103:E103)/calc!$G$29 -> 6.33931438 | Q103: =SUMPRODUCT(calc!$D$30:$F$30, data!C103:E103) -> 2.702444653 | R103: =SUMPRODUCT(calc!$D$31:$F$31, data!C103:E103) -> -0.01674230363
B104: 1991-12-31 | C104: 4.11 | D104: 6.0939 | E104: 7.1211 | G104: 0.6012227042 | H104: 1.029999039 | I104: 1.338104952 | K104: =data!B104 -> 1991-12-31 | L104: 1.721187614 | M104: 0.4899254774 | N104: -0.1018717308 | P104: =SUMPRODUCT(calc!$D$29:$F$29, data!C104:E104)/calc!$G$29 -> 5.794874015 | Q104: =SUMPRODUCT(calc!$D$30:$F$30, data!C104:E104) -> 1.99428216 | R104: =SUMPRODUCT(calc!$D$31:$F$31, data!C104:E104) -> -0.2885494616
B105: 1991-09-30 | C105: 5.53 | D105: 6.9673 | E105: 7.7249 | G105: 1.24480898 | H105: 1.475629113 | I105: 1.696566315 | K105: =data!B105 -> 1991-09-30 | L105: 2.553296351 | M105: 0.2693086834 | N105: -0.1162691565 | P105: =SUMPRODUCT(calc!$D$29:$F$29, data!C105:E105)/calc!$G$29 -> 6.755127758 | Q105: =SUMPRODUCT(calc!$D$30:$F$30, data!C105:E105) -> 1.378513451 | R105: =SUMPRODUCT(calc!$D$31:$F$31, data!C105:E105) -> -0.3001983005
B106: 1991-06-30 | C106: 5.98 | D106: 7.8583 | E106: 8.4594 | G106: 1.448762377 | H106: 1.930239138 | I106: 2.132621086 | K106: =data!B106 -> 1991-06-30 | L106: 3.189495917 | M106: 0.4433308274 | N106: -0.05815348045 | P106: =SUMPRODUCT(calc!$D$29:$F$29, data!C106:E106)/calc!$G$29 -> 7.451492011 | Q106: =SUMPRODUCT(calc!$D$30:$F$30, data!C106:E106) -> 1.609301062 | R106: =SUMPRODUCT(calc!$D$31:$F$31, data!C106:E106) -> -0.1305874608

Sheet calc
B2: TAB: PCA CALCULATOR
B4: A. Inputs and Calculator:
B6: Abbreviation | C6: Dim | D6: Calculator object | H6: Description | J6: Parameter | K6: Date | L6: Row index
B7: X | C7: 3 x n | D7: =_xll.AC.data.list_xx(OFFSET(data!$G$8, L7, 0, L11, L10), 1) -> java.util.ArrayList@Tue, 23 Jan 2018 16:55:14:041..5053586203564150333 | H7: Data | J7: End date | K7: =data!B9 -> 2015-09-30 | L7: =MATCH(K7, data!$B$9:$B$503, 0) -> 1
B8: PCA | D8: =_xll.AC.stats.samplecalc.pca(D7) -> jmathkr.lib.stats.basic.calc.PCA@Tue, 23 Jan 2018 17:00:05:268..8542492353964120145 | H8: PCA calculator | J8: Start date | K8: =OFFSET(data!B8, MIN(L12, L8), 0) -> 1991-06-30 | L8: =L12 -> 98
B9: Omega, Ω | C9: 3 x 3 | D9: =_xll.AC.stats.samplecalc.get(D8, "Omega") -> java.util.ArrayList@Tue, 23 Jan 2018 16:55:14:179..8855141009962287983 | H9: Data covariance matrix | J9: Numbr of lags (p) | L9: 1
B10: eig-values, Λ | C10: 1 x 3 | D10: =_xll.AC.stats.samplecalc.get(D8, "eig-values") -> java.util.ArrayList@Tue, 23 Jan 2018 16:55:14:180..7782185602862221564 | H10: Eigen-values | J10: Number of variables | L10: 3
B11: eig-vectors, V | C11: 3 x 3 | D11: =_xll.AC.stats.samplecalc.get(D8, "eig-vectors") -> java.util.ArrayList@Tue, 23 Jan 2018 16:55:14:180..3803779192819881982 | H11: Eigen-vectors | J11: Sample size | L11: =L8+1-L7 -> 98
B12: I | C12: 3 x 3 | D12: =_xll.AC.math.M.XXT(D11, 1, 1) -> java.util.ArrayList@Tue, 23 Jan 2018 16:55:14:191..4556911555166136080 | H12: Eigen-vector test: V x VT = I | J12: Total number of observations | L12: =COUNT(data!B9:B1003) -> 98
B13: O = V x X | C13: 3 x n | D13: =_xll.AC.math.M.times(1, D11, D7) -> java.util.ArrayList@Tue, 23 Jan 2018 16:55:14:191..6364590822534946949 | H13: Data transformation into orthogonal system
B14: O OT = Λ | C14: 3 x 3 | D14: =_xll.AC.math.M.XXT(D13, 1/L11, 0) -> java.util.ArrayList@Tue, 23 Jan 2018 16:55:14:192..4792226313344705732 | H14: Test: O x OT = Λ
B17: B. Output
J19: Test: VT Λ V = Ω | K19: 1 | L19: 2 | M19: 3 | O19: O OT = Λ
B20: Omega, Ω | D20: =data!C7 -> 3M | E20: =data!D7 -> 5Y | F20: =data!E7 -> 10Y | H20: C0mments | J20: VT Λ V | K20: =D20 -> 3M | L20: =E20 -> 5Y | M20: 10Y | O20: =K20 -> 3M | P20: =L20 -> 5Y | Q20: 10Y
B21: =D20 -> 3M | D21: =_xll.AC.data._get(D9, "X", 0) -> 0.9897959184 | E21: 0.8955564718 | F21: 0.8039746707 | J21: =B21 -> 3M | K21: =SUMPRODUCT(OFFSET($K$34:$M$34, K$19-1, 0), $K29:$M29) -> 0.9897959184 | L21: 0.8955564718 | M21: 0.8039746707 | O21: =_xll.AC.data._get(D14, "X", 0) -> 2.771077067 | P21: -3.226585665e-16 | Q21: -1.82145965e-17
B22: =E20 -> 5Y | D22: 0.8955564718 | E22: 0.9897959184 | F22: 0.9698202538 | J22: =B22 -> 5Y | K22: 0.8955564718 | L22: 0.9897959184 | M22: 0.9698202538 | O22: -2.723515857e-16 | P22: 0.1952078961 | Q22: -8.483882e-17
B23: =F20 -> 10Y | D23: 0.8039746707 | E23: 0.9698202538 | F23: 0.9897959184 | J23: 10Y | K23: 0.8039746707 | L23: 0.9698202538 | M23: 0.9897959184 | O23: -2.038300084e-17 | P23: -8.516408065e-17 | Q23: 0.003102792235
B25: Λ | D25: =D20 -> 3M | E25: =E20 -> 5Y | F25: 10Y | G25: √ (max / min) | K25: =D25 -> 3M | L25: =E25 -> 5Y | M25: 10Y
B26: eig-values | D26: =_xll.AC.data._get(D10, "X", 1) -> 2.771077067 | E26: 0.1952078961 | F26: 0.003102792235 | G26: =SQRT(MAX(D26:F26) / MIN(D26:F26)) -> 29.88463488 | H26: =TEXT(MAX(K26:M26), "#.#%") &" of variance is explained by first component" -> 93.3% of variance is explained by first component | J26: explained var | K26: =D26/SUM($D$26:$F$26) -> 0.9332149572 | L26: =E26/SUM($D$26:$F$26) -> 0.06574011622 | M26: 0.001044926595
B28: eig-vectors, V | D28: =D25 -> 3M | E28: =E25 -> 5Y | F28: 10Y | G28: SUM | J28: VT | K28: =D28 -> 3M | L28: =E28 -> 5Y | M28: =F28 -> 10Y
B29: =B21 -> 3M | D29: =_xll.AC.data._get(D11, "X", 0) -> 0.5595567917 | E29: 0.5952840215 | F29: 0.5766568568 | G29: =SUM(D29:F29) -> 1.73149767 | H29: The line presents the index of the main component | J29: =B29 -> 3M | K29: =_xll.AC.data._get(D11, "X", 1) -> 0.5595567917 | L29: -0.7904514247 | M29: -0.2491640865
B30: =B22 -> 5Y | D30: -0.7904514247 | E30: 0.1741360785 | F30: 0.5872505184 | G30: =SUM(D30:F30) -> -0.02906482777 | J30: =B30 -> 5Y | K30: 0.5952840215 | L30: 0.1741360785 | M30: 0.7844192501
B31: 10Y | D31: -0.2491640865 | E31: 0.7844192501 | F31: -0.5679821283 | G31: -0.03272696476 | J31: 10Y | K31: 0.5766568568 | L31: 0.5872505184 | M31: -0.5679821283
B33: Test: VVT = I | D33: =D20 -> 3M | E33: =E20 -> 5Y | F33: =F20 -> 10Y | J33: VT x Λ | K33: =K28 -> 3M | L33: =L28 -> 5Y | M33: =M28 -> 10Y
B34: =B29 -> 3M | D34: =_xll.AC.data._get(D12, "X", 0) -> 1 | E34: -5.551115123e-17 | F34: -1.110223025e-16 | J34: =B34 -> 3M | K34: =K29*D$26 -> 1.550574993 | L34: -0.1543023596 | M34: -0.000773104393
B35: =B30 -> 5Y | D35: -5.551115123e-17 | E35: 1 | F35: 1.665334537e-16 | J35: =B35 -> 5Y | K35: 1.6495779 | L35: 0.03399273753 | M35: 0.002433889958
B36: =B31 -> 10Y | D36: -1.110223025e-16 | E36: 1.665334537e-16 | F36: 1 | J36: 10Y | K36: 1.597960591 | L36: 0.1146359382 | M36: -0.001762330538
K134: =IF(L134="", "", OFFSET(data!$B$8, L134, 0)) ->  | L134: =IF(L133="", "", IF(L133+1>$L$8, "", L133+1)) -> 
K135: =IF(L135="", "", OFFSET(data!$B$8, L135, 0)) -> 
K136: =IF(L136="", "", OFFSET(data!$B$8, L136, 0)) -> 
K137: =IF(L137="", "", OFFSET(data!$B$8, L137, 0)) -> 
K138: =IF(L138="", "", OFFSET(data!$B$8, L138, 0)) -> 
K139: =IF(L139="", "", OFFSET(data!$B$8, L139, 0)) -> 
K140: =IF(L140="", "", OFFSET(data!$B$8, L140, 0)) -> 
K141: =IF(L141="", "", OFFSET(data!$B$8, L141, 0)) -> 
K142: =IF(L142="", "", OFFSET(data!$B$8, L142, 0)) -> 
K143: =IF(L143="", "", OFFSET(data!$B$8, L143, 0)) -> 
K144: =IF(L144="", "", OFFSET(data!$B$8, L144, 0)) -> 
K145: =IF(L145="", "", OFFSET(data!$B$8, L145, 0)) -> 
K146: =IF(L146="", "", OFFSET(data!$B$8, L146, 0)) -> 
K147: =IF(L147="", "", OFFSET(data!$B$8, L147, 0)) -> 
K148: =IF(L148="", "", OFFSET(data!$B$8, L148, 0)) -> 
K149: =IF(L149="", "", OFFSET(data!$B$8, L149, 0)) -> 
K150: =IF(L150="", "", OFFSET(data!$B$8, L150, 0)) -> 
K151: =IF(L151="", "", OFFSET(data!$B$8, L151, 0)) -> 
K152: =IF(L152="", "", OFFSET(data!$B$8, L152, 0)) -> 
K153: =IF(L153="", "", OFFSET(data!$B$8, L153, 0)) -> 
K154: =IF(L154="", "", OFFSET(data!$B$8, L154, 0)) -> 
K155: =IF(L155="", "", OFFSET(data!$B$8, L155, 0)) -> 
K156: =IF(L156="", "", OFFSET(data!$B$8, L156, 0)) -> 
K157: =IF(L157="", "", OFFSET(data!$B$8, L157, 0)) -> 
K158: =IF(L158="", "", OFFSET(data!$B$8, L158, 0)) -> 
K159: =IF(L159="", "", OFFSET(data!$B$8, L159, 0)) -> 
K160: =IF(L160="", "", OFFSET(data!$B$8, L160, 0)) -> 
K161: =IF(L161="", "", OFFSET(data!$B$8, L161, 0)) -> 
K162: =IF(L162="", "", OFFSET(data!$B$8, L162, 0)) -> 
K163: =IF(L163="", "", OFFSET(data!$B$8, L163, 0)) -> 
K164: =IF(L164="", "", OFFSET(data!$B$8, L164, 0)) -> 
K165: =IF(L165="", "", OFFSET(data!$B$8, L165, 0)) -> 
K166: =IF(L166="", "", OFFSET(data!$B$8, L166, 0)) -> 
K167: =IF(L167="", "", OFFSET(data!$B$8, L167, 0)) -> 
K168: =IF(L168="", "", OFFSET(data!$B$8, L168, 0)) -> 
K169: =IF(L169="", "", OFFSET(data!$B$8, L169, 0)) -> 
K170: =IF(L170="", "", OFFSET(data!$B$8, L170, 0)) -> 
K171: =IF(L171="", "", OFFSET(data!$B$8, L171, 0)) -> 
K172: =IF(L172="", "", OFFSET(data!$B$8, L172, 0)) -> 
K173: =IF(L173="", "", OFFSET(data!$B$8, L173, 0)) -> 
K174: =IF(L174="", "", OFFSET(data!$B$8, L174, 0)) -> 

Sheet charts
B2: TAB: CHARTS
B4: Variables and Index | H4: Normalized variables and main principal component
H20: Second and third principal components

Sheet config
B2: TAB: CONFIGURATION FILE | E2: Calculations enabled: | F2: FALSE
B4: Test connection | C4: =_xll.AC.test.connection() -> host: home-pc; user: Konstantin Rybakov; key: null
B8: Array formula cell address | C8: number of rows | D8: number of cols | E8: Description
B9: =addressFla(calc!D21) -> 'calc'!$D$21 | C9: 3 | D9: 3 | E9: Auto-regression model coefficients
